bitfinex-derivatives/quotes_BTCF0:USTF0_20260127
["timestamp","ask_amount","ask_price","bid_price","bid_amount"]
[1769523072852,0.011356,88171.0,88161.0,0.17001362]
[1769523073955,0.011356,88171.0,88161.0,0.01761957]
[1769523074749,0.011357,88169.0,88161.0,0.01761957]
[1769523074948,0.011356,88171.0,88161.0,0.01761957]
[1769523076459,0.1022,88174.0,88161.0,0.01761957]
[1769523076859,0.11254158,88174.0,88161.0,0.01761957]
[1769523077358,0.011357,88171.0,88161.0,0.01761957]
[1769523078260,0.11254158,88174.0,88161.0,0.01761957]
[1769523078559,0.02150206,88168.0,88156.0,0.01758376]
[1769523078762,0.01014506,88168.0,88156.0,0.02894176]
[1769523078960,0.01014506,88173.0,88157.0,0.01758376]
[1769523079254,0.011357,88168.0,88157.0,0.01758376]
[1769523079456,0.01014506,88173.0,88157.0,0.01758376]
[1769523079761,0.011357,88167.0,88157.0,0.01758376]
[1769523079963,0.011357,88165.0,88153.0,0.1898653]
[1769523080256,0.011357,88163.0,88153.0,0.1898653]
[1769523080561,0.011357,88163.0,88153.0,0.01985168]
[1769523081059,0.011357,88165.0,88155.0,0.01759213]
[1769523081260,0.01005683,88167.0,88155.0,0.01759213]
[1769523081955,0.011357,88168.0,88156.0,0.02071394]
[1769523083255,0.01008333,88182.0,88159.0,0.02071394]
[1769523083559,0.1022,88181.0,88173.0,0.02071394]
[1769523083757,0.1022,88180.0,88173.0,0.02071394]
[1769523083962,0.1022,88180.0,88174.0,0.011356]
[1769523084263,0.1022,88180.0,88173.0,0.02071394]
[1769523085057,0.1022,88180.0,88170.0,0.12878896]
[1769523085058,0.011356,88178.0,88171.0,0.01945418]
[1769523085256,0.011356,88178.0,88166.0,0.011357]
[1769523085458,0.011356,88178.0,88163.0,0.011357]
[1769523085654,0.011356,88176.0,88163.0,0.011357]
[1769523087352,0.011356,88176.0,88164.0,0.01945418]
[1769523087970,0.011356,88175.0,88164.0,0.01945418]
[1769523088148,0.011356,88172.0,88164.0,0.01945418]
[1769523090562,0.011356,88172.0,88160.0,0.011358]
[1769523090958,0.011356,88172.0,88158.0,0.17001362]
[1769523091358,0.011356,88172.0,88159.0,0.17001362]
[1769523091863,0.011356,88172.0,88159.0,0.18137162]
[1769523092157,0.011356,88172.0,88160.0,0.17001362]
[1769523092363,0.011357,88171.0,88160.0,0.17001362]
[1769523092667,0.011357,88171.0,88160.0,0.01945418]
[1769523093151,0.011357,88171.0,88165.0,0.15476467]
[1769523093556,0.011357,88171.0,88166.0,0.13531049]
[1769523093757,0.011357,88171.0,88166.0,0.01945418]
[1769523093963,0.011357,88169.0,88166.0,1.8e-07]
[1769523094365,0.011356,88172.0,88166.0,1.8e-07]
[1769523094559,0.011356,88172.0,88167.0,0.13531049]
[1769523094869,0.1022,88180.0,88167.0,0.13531049]
[1769523095064,0.1022,88180.0,88166.0,0.13531049]
[1769523095469,0.011356,88175.0,88166.0,0.13531049]
[1769523095956,0.011356,88175.0,88167.0,0.01945418]
[1769523096157,0.011356,88178.0,88167.0,0.01945418]
[1769523096357,0.1022,88180.0,88167.0,0.01945418]
[1769523096867,0.011356,88174.0,88167.0,0.01945418]
[1769523097369,0.011356,88173.0,88167.0,0.01945418]
[1769523097581,0.12311672,88180.0,88167.0,0.01945418]
[1769523097582,0.02091672,88179.0,88167.0,0.01945418]
[1769523098068,0.011357,88171.0,88167.0,0.01945418]
[1769523098775,0.03227172,88179.0,88167.0,0.01945418]
[1769523098959,0.011356,88174.0,88167.0,0.01945418]
[1769523099159,0.011356,88171.0,88167.0,0.01945418]
[1769523099468,0.011356,88174.0,88167.0,0.01945418]
[1769523099959,0.02091672,88179.0,88167.0,0.01945418]
[1769523100158,0.011356,88172.0,88167.0,0.01945418]
[1769523102171,0.1022,88180.0,88167.0,0.01945418]
[1769523102870,0.011356,88173.0,88167.0,0.01945418]
[1769523103074,0.1022,88180.0,88168.0,0.011357]
[1769523103273,0.011354,88192.0,88168.0,0.011357]
[1769523103274,0.1022,88187.0,88169.0,0.01945418]
[1769523104167,0.011355,88181.0,88169.0,0.01945418]
[1769523104768,0.02091672,88186.0,88169.0,0.01945418]
[1769523104970,0.02091672,88186.0,88170.0,0.01945418]
[1769523105579,0.011356,88177.0,88170.0,0.01945418]
[1769523106079,0.1022,88187.0,88170.0,0.01945418]
[1769523106278,0.011355,88184.0,88171.0,0.01945418]
[1769523106571,0.011355,88184.0,88159.0,0.06272301]
[1769523106572,0.1022,88187.0,88176.0,0.01945418]
[1769523106878,0.011355,88186.0,88176.0,0.15476467]
[1769523107075,0.011355,88186.0,88177.0,0.13531049]
[1769523107277,0.011355,88186.0,88177.0,0.01945418]
[1769523107474,0.011355,88186.0,88179.0,0.13531049]
[1769523107679,0.011355,88184.0,88179.0,0.13531049]
[1769523107870,0.1022,88187.0,88179.0,4.9e-07]
[1769523108065,0.1022,88187.0,88175.0,0.01945418]
[1769523108982,0.011355,88184.0,88175.0,0.01945418]
[1769523109773,0.1022,88187.0,88175.0,0.01945418]
[1769523110484,0.113554,88187.0,88175.0,0.01945418]
[1769523112285,0.01702342,88193.0,88180.0,0.01945418]
[1769523112877,0.011354,88192.0,88180.0,0.01945418]
[1769523113478,0.011354,88191.0,88180.0,0.01945418]
[1769523114283,0.01702342,88193.0,88180.0,0.01945418]
[1769523114983,0.011354,88190.0,88180.0,0.01945418]
[1769523115885,0.0333472,88181.0,88172.0,0.27217362]
[1769523116080,0.011356,88176.0,88167.0,0.17001362]
[1769523116281,0.011356,88178.0,88166.0,0.10216]
[1769523116481,0.011356,88178.0,88166.0,0.13791954]
[1769523117685,0.011356,88178.0,88167.0,0.03575954]
[1769523118883,0.0333472,88180.0,88167.0,0.03575954]
[1769523119085,0.011355,88180.0,88167.0,0.03575954]
[1769523119488,0.011355,88183.0,88167.0,0.03575954]
[1769523119787,0.011355,88181.0,88167.0,0.03575954]
[1769523120391,0.0333472,88184.0,88167.0,0.03575954]
[1769523120690,0.011355,88181.0,88167.0,0.03575954]
[1769523121394,0.0333472,88184.0,88167.0,0.03575954]
[1769523121696,0.011356,88178.0,88167.0,0.03575954]
[1769523121896,0.011355,88181.0,88167.0,0.03575954]
[1769523125193,0.011355,88184.0,88168.0,0.011357]
[1769523125399,0.011355,88184.0,88169.0,0.03575954]
[1769523125602,0.011355,88184.0,88171.0,0.03575954]
[1769523126498,0.10216,88187.0,88171.0,0.03575954]
[1769523126697,0.10216,88187.0,88178.0,0.03575954]
[1769523127497,0.0333472,88186.0,88173.0,0.10216]
[1769523127716,0.0333472,88184.0,88173.0,0.10216]
[1769523127917,0.0333472,88184.0,88173.0,0.13791954]
[1769523128220,0.011355,88185.0,88173.0,0.13791954]
[1769523129617,0.022352,88207.0,88192.0,0.03575954]
[1769523129810,0.011,88207.0,88192.0,0.03575954]
[1769523130010,0.011,88207.0,88194.0,0.03575954]
[1769523130314,0.011,88207.0,88196.0,0.03575954]
[1769523131221,0.011352,88206.0,88196.0,0.03575954]
[1769523131604,0.011,88207.0,88196.0,0.03575954]
[1769523131805,0.00390928,88215.0,88202.0,0.03575954]
[1769523132008,0.0333472,88225.0,88197.0,0.21553739]
[1769523132009,0.01135,88220.0,88206.0,0.03575954]
[1769523132320,0.01135,88220.0,88196.0,0.48096]
[1769523132321,0.0103238,88226.0,88208.0,0.03575954]
[1769523132618,0.0103238,88226.0,88199.0,0.01752861]
[1769523132619,0.011351,88211.0,88199.0,0.01752861]
[1769523132813,0.011352,88209.0,88201.0,0.10216]
[1769523133212,0.0333472,88222.0,88202.0,0.01752861]
[1769523133412,0.011351,88211.0,88202.0,0.01752861]
[1769523133609,0.011351,88214.0,88202.0,0.01752861]
[1769523134018,0.011351,88217.0,88202.0,0.01752861]
[1769523136712,0.0446982,88215.0,88202.0,0.01752861]
[1769523137427,0.0333472,88209.0,88193.0,0.00045124]
[1769523137622,0.0333472,88201.0,88188.0,0.10216]
[1769523137919,0.0333472,88201.0,88188.0,0.10261124]
[1769523138121,0.011352,88205.0,88189.0,0.01180524]
[1769523138328,0.011352,88205.0,88190.0,0.00045124]
[1769523138513,0.10216,88212.0,88188.0,0.10216]
[1769523138514,0.10216,88212.0,88192.0,0.00045124]
[1769523138714,0.10216,88212.0,88199.0,0.011353]
[1769523140721,0.310349,88229.0,88199.0,0.10216]
[1769523140722,0.01135,88219.0,88199.0,0.10216]
[1769523140918,0.1355072,88223.0,88199.0,0.10216]
[1769523141425,0.0333472,88222.0,88199.0,0.10216]
[1769523141607,0.01135,88221.0,88199.0,0.10216]
[1769523141906,0.01135,88221.0,88205.0,0.011352]
[1769523142318,0.0333472,88222.0,88209.0,0.011351]
[1769523142526,0.03090013,88218.0,88199.0,0.10216]
[1769523143021,0.011351,88217.0,88203.0,0.011352]
[1769523143421,0.03090013,88214.0,88199.0,0.113513]
[1769523143928,0.011351,88217.0,88199.0,0.113513]
[1769523144119,0.04230045,88217.0,88201.0,0.011353]
[1769523144815,0.011351,88215.0,88201.0,0.011353]
[1769523145920,0.03094945,88217.0,88198.0,0.24828025]
[1769523146121,0.011351,88212.0,88199.0,0.13476725]
[1769523146518,0.011351,88215.0,88200.0,0.011353]
[1769523147329,0.0309525,88217.0,88200.0,0.13476725]
[1769523147525,0.0309525,88217.0,88200.0,0.14612025]
[1769523147526,0.011351,88214.0,88200.0,0.14612025]
[1769523148219,0.01135,88220.0,88206.0,0.13476725]
[1769523148428,0.03125265,88222.0,88207.0,0.13476725]
[1769523148617,0.03125265,88222.0,88206.0,0.13476725]
[1769523149332,0.01135,88219.0,88208.0,0.13476725]
[1769523149528,0.011351,88217.0,88208.0,0.13476725]
[1769523152537,0.04266293,88219.0,88208.0,0.13476725]
[1769523152740,0.03131293,88219.0,88208.0,0.13476725]
[1769523153534,0.04266293,88219.0,88208.0,0.13476725]
[1769523154135,0.0430095,88218.0,88208.0,0.13476725]
[1769523154537,0.0316595,88218.0,88208.0,0.13476725]
[1769523155030,0.0316595,88218.0,88208.0,0.14611925]
[1769523155848,0.04315419,88222.0,88208.0,0.14611925]
[1769523156231,0.011349,88225.0,88210.0,0.11716487]
[1769523156535,0.03180419,88223.0,88210.0,0.13476725]
[1769523157335,0.01135,88222.0,88210.0,0.13476725]
[1769523158541,0.10216,88224.0,88210.0,0.25193212]
[1769523158736,0.10216,88224.0,88216.0,0.13476725]
[1769523158938,0.10216,88224.0,88217.0,0.13476725]
[1769523159143,0.10216,88224.0,88212.0,0.17001362]
[1769523159339,0.10211,88224.0,88211.0,0.18136462]
[1769523159542,0.13406085,88224.0,88211.0,0.17001362]
[1769523159842,0.03197874,88223.0,88211.0,0.17001362]
[1769523161238,0.03197874,88223.0,88212.0,0.17001362]
[1769523161438,0.03197874,88223.0,88213.0,0.011351]
[1769523162038,0.10211,88224.0,88213.0,0.011351]
[1769523162234,0.10211,88224.0,88214.0,0.011351]
[1769523162439,0.10206,88224.0,88215.0,0.011351]
[1769523163647,0.011,88227.0,88211.0,0.18136462]
[1769523163839,0.00480682,88232.0,88218.0,0.11716487]
[1769523164040,0.00460452,88239.0,88222.0,0.11716487]
[1769523164241,5.1e-07,88236.0,88232.0,0.011348]
[1769523164548,0.00460452,88239.0,88232.0,0.011348]
[1769523165345,0.00460452,88239.0,88229.0,0.011349]
[1769523165850,0.00460452,88239.0,88231.0,0.011349]
[1769523167344,0.11312,88247.0,88222.0,0.10212]
[1769523167345,0.00495082,88249.0,88230.0,0.011349]
[1769523167552,0.011347,88246.0,88232.0,0.011348]
[1769523167755,0.00495082,88249.0,88236.0,0.011348]
[1769523168053,0.00550745,88260.0,88239.0,0.11716487]
[1769523168251,0.00550745,88260.0,88233.0,0.10212]
[1769523168252,0.10212,88272.0,88250.0,0.11716487]
[1769523168556,0.10212,88272.0,88248.0,0.011346]
[1769523168557,0.011345,88264.0,88248.0,0.011346]
[1769523168750,0.18701256,88266.0,88250.0,0.011346]
[1769523168951,0.011344,88265.0,88247.0,0.10212]
[1769523169346,0.03190537,88259.0,88233.0,0.17001362]
[1769523169549,0.03190537,88259.0,88222.0,0.23680765]
[1769523169550,0.0319163,88249.0,88235.0,0.011348]
[1769523169942,0.0319163,88257.0,88235.0,0.011348]
[1769523170151,0.0319163,88257.0,88230.0,0.11716487]
[1769523170152,0.0319163,88249.0,88233.0,0.4992]
[1769523170358,0.0319163,88249.0,88237.0,0.0896823]
[1769523170540,0.0319163,88249.0,88238.0,0.0896823]
[1769523170753,0.03200412,88248.0,88238.0,0.0896823]
[1769523171056,0.03200412,88244.0,88229.0,0.10212]
[1769523171350,0.1818954,88248.0,88236.0,0.011348]
[1769523171554,0.1818954,88247.0,88230.0,0.11716487]
[1769523171744,0.04337349,88255.0,88230.0,0.11716487]
[1769523171942,0.1818954,88254.0,88230.0,0.11716487]
[1769523172149,0.1818954,88254.0,88240.0,0.11716487]
[1769523172344,0.03202749,88260.0,88244.0,0.011347]
[1769523172651,0.03202749,88260.0,88246.0,0.011347]
[1769523173050,0.03202749,88260.0,88248.0,0.011346]
[1769523173346,0.03202749,88260.0,88245.0,0.011347]
[1769523173554,0.03202749,88260.0,88243.0,0.011347]
[1769523174345,0.03202749,88260.0,88241.0,0.10212]
[1769523174346,0.03197749,88260.0,88241.0,0.10212]
[1769523174850,0.03197749,88260.0,88231.0,0.17001362]
[1769523175156,0.011347,88245.0,88232.0,0.10212]
[1769523175655,0.011347,88248.0,88232.0,0.10212]
[1769523175849,0.011347,88246.0,88232.0,0.10212]
[1769523176050,0.011346,88249.0,88232.0,0.10212]
[1769523176247,0.310185,88258.0,88232.0,0.10212]
[1769523176248,0.011345,88257.0,88232.0,0.10212]
[1769523176449,0.02802744,88256.0,88232.0,0.10212]
[1769523177254,0.02813309,88254.0,88236.0,0.011348]
[1769523178558,0.011345,88261.0,88241.0,0.011347]
[1769523178954,0.0281414,88263.0,88239.0,0.10212]
[1769523179153,0.0281414,88258.0,88241.0,0.011347]
[1769523180064,0.011345,88257.0,88241.0,0.011347]
[1769523180264,0.02815896,88240.0,88233.0,0.17001362]
[1769523180465,0.02815896,88240.0,88222.0,0.01135]
[1769523180466,0.01251509,88239.0,88222.0,0.01135]
[1769523181054,0.011348,88238.0,88222.0,0.01135]
[1769523181263,0.011348,88238.0,88219.0,0.10212]
[1769523181264,0.011348,88235.0,88220.0,0.01135]
[1769523181459,0.011348,88238.0,88222.0,0.01135]
[1769523181651,0.011347,88244.0,88220.0,0.10212]
[1769523181963,0.01261729,88239.0,88221.0,0.01135]
[1769523182164,0.02396529,88237.0,88218.0,0.10212]
[1769523182367,0.01261729,88231.0,88209.0,0.22545765]
[1769523182661,0.01135,88225.0,88209.0,0.10212]
[1769523182860,0.01288513,88222.0,88209.0,0.10212]
[1769523184163,0.01288513,88222.0,88210.0,0.011351]
[1769523185271,0.01288513,88222.0,88212.0,0.011351]
[1769523185567,0.02434915,88228.0,88209.0,0.10212]
[1769523185864,0.01300015,88227.0,88211.0,0.011351]
[1769523186658,0.01300015,88227.0,88210.0,0.011351]
[1769523187066,0.011349,88226.0,88210.0,0.011351]
[1769523187667,0.01300015,88227.0,88202.0,0.10212]
[1769523187974,0.10212,88230.0,88202.0,0.10212]
[1769523188269,0.10212,88230.0,88215.0,0.011351]
[1769523188463,0.011348,88237.0,88219.0,0.01135]
[1769523188665,0.011348,88237.0,88221.0,0.01135]
[1769523189259,0.011348,88237.0,88221.0,0.0113]
[1769523190364,0.01293974,88236.0,88221.0,0.0113]
[1769523192873,0.011348,88235.0,88218.0,0.01135]
[1769523193172,0.011348,88234.0,88218.0,0.01135]
[1769523193873,0.011348,88238.0,88222.0,0.01135]
[1769523194071,0.10212,88239.0,88224.0,0.011349]
[1769523194464,0.011348,88238.0,88224.0,0.011349]
[1769523194776,0.011348,88235.0,88220.0,0.01135]
[1769523195379,0.011348,88235.0,88222.0,0.01135]
[1769523195876,0.02422081,88238.0,88224.0,0.01135]
[1769523196374,0.01287281,88238.0,88225.0,0.011349]
[1769523196674,0.10212,88239.0,88227.0,0.011349]
[1769523196869,0.10212,88239.0,88229.0,0.011349]
[1769523197074,0.10212,88239.0,88215.0,0.13465311]
[1769523197276,0.10212,88239.0,88214.0,0.13465311]
[1769523197476,0.113468,88239.0,88227.0,0.011349]
[1769523198579,0.10212,88239.0,88227.0,0.011349]
[1769523200572,0.10212,88239.0,88229.0,0.011349]
[1769523200876,0.31167618,88245.0,88224.0,0.10212]
[1769523200877,0.10212,88245.0,88224.0,0.10212]
[1769523201083,0.10212,88245.0,88225.0,0.14600211]
[1769523201275,0.29888,88249.0,88242.0,0.011347]
[1769523201582,0.10212,88256.0,88242.0,0.011347]
[1769523201776,0.011346,88254.0,88239.0,0.011348]
[1769523201990,0.11497488,88256.0,88239.0,0.011348]
[1769523202177,0.011346,88253.0,88239.0,0.011348]
[1769523202481,0.01285488,88255.0,88232.0,0.13465311]
[1769523202673,0.01285488,88245.0,88234.0,0.011348]
[1769523203184,0.011346,88249.0,88234.0,0.011348]
[1769523203783,0.011346,88249.0,88233.0,0.13465311]
[1769523203784,0.02419888,88265.0,88242.0,0.13465311]
[1769523204076,0.01285488,88264.0,88254.0,0.011346]
[1769523204282,0.01294827,88263.0,88250.0,0.011346]
[1769523204482,0.01294827,88263.0,88246.0,0.13465311]
[1769523204677,0.02429327,88263.0,88246.0,0.13465311]
[1769523204878,0.02429327,88262.0,88248.0,0.011346]
[1769523205074,0.01294827,88262.0,88250.0,0.011346]
[1769523205276,0.01294827,88262.0,88246.0,0.13465311]
[1769523205587,0.01294827,88262.0,88241.0,0.16817457]
[1769523205790,0.0113464,88261.0,88248.0,0.011346]
[1769523206787,0.0113464,88261.0,88240.0,0.16817457]
[1769523206977,0.0113464,88261.0,88241.0,0.16817457]
[1769523208184,0.0113464,88261.0,88240.0,0.16817457]
[1769523209280,0.0226914,88261.0,88240.0,0.16817457]
[1769523209585,0.0113464,88261.0,88240.0,0.16817457]
[1769523210276,0.0113464,88261.0,88248.0,0.011346]
[1769523210784,0.02429327,88262.0,88248.0,0.011346]
[1769523210984,0.0113464,88261.0,88248.0,0.011346]
[1769523211488,0.01272964,88252.0,88236.0,0.011348]
[1769523211790,0.01272964,88246.0,88229.0,0.10212]
[1769523211989,0.01272964,88246.0,88229.0,0.09212]
[1769523212390,0.01272964,88246.0,88232.0,0.011349]
[1769523213189,0.0113464,88245.0,88232.0,0.011349]
[1769523213486,0.0113464,88245.0,88236.0,0.011348]
[1769523215877,0.0113464,88245.0,88233.0,0.011348]
[1769523216992,0.011346,88253.0,88240.0,0.011347]
[1769523217286,0.011346,88253.0,88234.0,0.011348]
[1769523217287,0.0113464,88253.0,88234.0,0.011348]
[1769523217484,0.011345,88257.0,88234.0,0.011348]
[1769523217789,0.011345,88260.0,88245.0,0.011347]
[1769523218089,0.0226914,88260.0,88245.0,0.011347]
[1769523218491,0.011345,88260.0,88245.0,0.011347]
[1769523219190,0.00511716,88266.0,88241.0,0.011347]
[1769523219388,4e-07,88264.0,88262.0,0.011345]
[1769523219686,5.6e-07,88267.0,88264.0,0.011344]
[1769523220083,0.10212,88270.0,88264.0,0.011344]
[1769523220289,0.10212,88270.0,88261.0,0.011345]
[1769523221294,0.10212,88270.0,88246.0,0.27029457]
[1769523221295,0.10212,88269.0,88263.0,0.011345]
[1769523222789,0.10208,88269.0,88263.0,0.022691]
[1769523223305,0.011341,88289.0,88246.0,0.10212]
[1769523223306,0.01881087,88299.0,88279.0,0.011342]
[1769523223489,0.01881087,88299.0,88277.0,0.011343]
[1769523223490,0.01254138,88294.0,88277.0,0.011343]
[1769523224392,0.01254138,88286.0,88278.0,0.11326952]
[1769523224589,0.01254138,88286.0,88273.0,0.011343]
[1769523224992,0.01254138,88286.0,88269.0,0.011344]
[1769523225895,0.01254138,88286.0,88272.0,0.011343]
[1769523226193,0.01244035,88290.0,88270.0,0.011344]
[1769523226500,0.41328035,88289.0,88272.0,0.011343]
[1769523226896,0.02312204,88293.0,88273.0,0.00313787]
[1769523227196,0.02312204,88293.0,88265.0,0.10208]
[1769523227197,0.40084,88292.0,88269.0,0.00313787]
[1769523227791,0.40084,88292.0,88276.0,0.011343]
[1769523228190,0.40084,88291.0,88276.0,0.011343]
[1769523228388,0.40084,88291.0,88278.0,0.011343]
[1769523228992,0.40084,88290.0,88278.0,0.011343]
[1769523229192,0.40084,88290.0,88279.0,0.00313787]
[1769523230098,0.40084,88289.0,88279.0,0.00313787]
[1769523231196,0.01263482,88285.0,88266.0,0.011344]
[1769523231598,0.01263482,88285.0,88266.0,0.1246148]
[1769523231796,0.01263482,88285.0,88268.0,0.011344]
[1769523232296,0.011342,88287.0,88270.0,0.011344]
[1769523233007,0.40084,88289.0,88272.0,0.011343]
[1769523233196,0.011341,88288.0,88272.0,0.011343]
[1769523233393,0.00878104,88293.0,88268.0,0.011344]
[1769523233604,0.00263151,88290.0,88279.0,0.011342]
[1769523233903,0.00263151,88290.0,88281.0,0.011342]
[1769523234204,0.00263151,88290.0,88279.0,0.00214029]
[1769523234506,0.01545882,88290.0,88278.0,0.10208]
[1769523235403,0.011341,88289.0,88278.0,0.10208]
[1769523235603,0.01545882,88290.0,88278.0,0.10208]
[1769523236201,0.01545882,88290.0,88274.0,0.011343]
[1769523237404,0.02679982,88290.0,88274.0,0.011343]
[1769523238703,0.02679982,88290.0,88273.0,0.10422029]
[1769523238704,0.011341,88288.0,88273.0,0.10422029]
[1769523238903,0.01545882,88290.0,88273.0,0.113423]
[1769523239101,0.01545882,88290.0,88267.0,0.13404675]
[1769523239406,0.01292829,88283.0,88268.0,0.21535529]
[1769523240303,0.01292829,88283.0,88269.0,0.011344]
[1769523240608,0.01292829,88283.0,88268.0,0.10208]
[1769523241698,0.011342,88281.0,88268.0,0.10208]
[1769523241897,0.011343,88280.0,88268.0,0.10208]
[1769523243103,0.02410284,88280.0,88268.0,0.10208]
[1769523243608,0.02410284,88277.0,88261.0,0.011345]
[1769523243800,0.011343,88275.0,88260.0,0.13404675]
[1769523243991,0.011343,88275.0,88261.0,0.11328363]
[1769523244195,0.011343,88275.0,88261.0,0.24733038]
[1769523244408,0.011343,88275.0,88261.0,0.11328363]
[1769523244706,0.01275984,88277.0,88261.0,0.11328363]
[1769523245508,0.02410284,88277.0,88261.0,0.11328363]
[1769523245803,0.011342,88281.0,88264.0,0.011344]
[1769523246007,0.011343,88278.0,88261.0,0.12462863]
[1769523246209,0.011342,88281.0,88263.0,0.011345]
[1769523246408,0.011343,88279.0,88263.0,0.011345]
[1769523247209,0.011342,88280.0,88264.0,0.011344]
[1769523248110,0.011342,88280.0,88264.0,0.14539075]
[1769523249104,0.011342,88280.0,88266.0,0.13404675]
[1769523249512,0.01275984,88283.0,88266.0,0.13404675]
[1769523250108,0.01275984,88283.0,88263.0,0.16817457]
[1769523250109,0.02410184,88283.0,88267.0,0.13404675]
[1769523250311,0.02410184,88283.0,88265.0,0.13404675]
[1769523250507,0.011343,88273.0,88265.0,0.13404675]
[1769523250914,0.011343,88273.0,88262.0,0.13404675]
[1769523252405,0.011343,88276.0,88262.0,0.13404675]
[1769523252712,0.011343,88275.0,88262.0,0.13404675]
[1769523252920,0.011343,88278.0,88263.0,0.011345]
[1769523253218,0.011343,88276.0,88263.0,0.13404675]
[1769523255018,0.011343,88274.0,88263.0,0.13404675]
[1769523255316,0.011343,88274.0,88262.0,0.13404675]
[1769523259218,0.10208,88277.0,88261.0,0.13404675]
[1769523259519,0.011344,88271.0,88261.0,0.13404675]
[1769523261523,0.011344,88270.0,88261.0,0.13404675]
[1769523261826,0.011344,88267.0,88260.0,0.13404675]
[1769523262122,0.01275984,88276.0,88260.0,0.13404675]
[1769523262525,0.011343,88273.0,88260.0,0.13404675]
[1769523262824,0.00126214,88267.0,88260.0,0.13404675]
[1769523263227,0.011343,88273.0,88260.0,0.13404675]
[1769523263228,0.00155498,88264.0,88260.0,0.13404675]
[1769523263415,0.00123558,88264.0,88260.0,0.13404675]
[1769523263615,0.011343,88273.0,88260.0,0.13404675]
[1769523263920,0.01275984,88276.0,88260.0,0.13404675]
[1769523264627,0.011341,88295.0,88260.0,0.13404675]
[1769523264628,0.01276564,88298.0,88273.0,0.011343]
[1769523264823,0.01276564,88298.0,88263.0,0.16817457]
[1769523264824,0.011341,88289.0,88271.0,0.13404675]
[1769523265129,0.10208,88295.0,88273.0,0.13404675]
[1769523265433,0.011341,88292.0,88274.0,0.011343]
[1769523265625,0.011341,88291.0,88273.0,0.13404675]
[1769523265819,0.011341,88291.0,88265.0,0.10208]
[1769523265820,0.011338,88311.0,88275.0,0.13404675]
[1769523266130,0.011339,88303.0,88282.0,0.011342]
[1769523266312,0.01134,88301.0,88281.0,0.13404675]
[1769523266533,0.10208,88305.0,88281.0,0.011342]
[1769523266534,0.0126164,88303.0,88281.0,0.011342]
[1769523266732,0.01134,88302.0,88279.0,0.13404675]
[1769523266952,0.01134,88300.0,88279.0,0.14538875]
[1769523267147,0.01134,88300.0,88280.0,0.24732076]
[1769523267338,0.01134,88300.0,88280.0,0.11327401]
[1769523267642,0.0239564,88303.0,88281.0,0.011342]
[1769523268150,0.01134,88301.0,88281.0,0.13404675]
[1769523268338,0.00453168,88304.0,88280.0,0.13404675]
[1769523268646,0.10208,88298.0,88283.0,0.13404675]
[1769523268851,0.00453168,88304.0,88292.0,0.011341]
[1769523268852,0.00153168,88304.0,88292.0,0.011341]
[1769523269042,0.00153168,88304.0,88293.0,0.011341]
[1769523269538,0.00153168,88304.0,88291.0,0.13404675]
[1769523269939,0.00153168,88304.0,88292.0,0.11326246]
[1769523270640,0.00153168,88304.0,88290.0,0.2189875]
[1769523270845,0.00153168,88304.0,88291.0,0.11325348]
[1769523271739,0.00153168,88304.0,88292.0,0.011341]
[1769523272446,0.03445331,88319.0,88295.0,0.00436877]
[1769523273340,0.03445331,88319.0,88290.0,0.10208]
[1769523273341,0.1169075,88310.0,88290.0,0.10208]
[1769523273545,0.1169075,88310.0,88290.0,0.10660311]
[1769523273744,0.1169075,88310.0,88291.0,0.00452311]
[1769523274558,0.00987721,88311.0,88291.0,0.00452311]
[1769523277837,0.00987721,88311.0,88293.0,0.00472278]
[1769523278049,0.02121521,88311.0,88293.0,0.00472278]
[1769523278252,0.1169075,88310.0,88293.0,0.00472278]
[1769523278545,0.00987721,88311.0,88293.0,0.00472278]
[1769523279854,0.12678471,88310.0,88293.0,0.00472278]
[1769523280346,0.03445331,88319.0,88297.0,0.01134]
[1769523280347,0.00999999,88319.0,88297.0,0.01134]
[1769523280546,0.00999999,88319.0,88299.0,0.01134]
[1769523280750,0.00999999,88319.0,88299.0,0.01143594]
[1769523281054,0.00999999,88319.0,88300.0,9.594e-05]
[1769523281651,0.011338,88318.0,88300.0,9.594e-05]
[1769523281953,0.00996801,88318.0,88300.0,9.594e-05]
[1769523282249,0.10204,88319.0,88303.0,9.594e-05]
[1769523282448,0.00996801,88318.0,88303.0,9.594e-05]
[1769523282843,0.00996801,88318.0,88304.0,0.00104824]
[1769523283046,0.10204,88319.0,88305.0,0.01238724]
[1769523283246,0.10204,88319.0,88306.0,0.00104824]
[1769523284059,0.10204,88319.0,88307.0,0.00104824]
[1769523284268,0.10204,88319.0,88312.0,0.011338]
[1769523284561,0.01156735,88326.0,88317.0,0.00053102]
[1769523284751,3.5e-07,88326.0,88309.0,0.1169075]
[1769523284945,3.5e-07,88327.0,88321.0,0.011337]
[1769523285548,3.5e-07,88327.0,88310.0,0.011339]
[1769523286161,0.00987721,88336.0,88305.0,0.10204]
[1769523286162,0.00622193,88340.0,88307.0,0.011339]
[1769523286351,0.011335,88338.0,88321.0,0.011337]
[1769523286661,0.13493259,88340.0,88320.0,0.00121616]
[1769523286662,0.011335,88336.0,88320.0,0.00121616]
[1769523286855,0.13493259,88340.0,88316.0,0.113378]
[1769523286856,0.12876025,88330.0,88316.0,0.113378]
[1769523287261,0.01185275,88330.0,88316.0,0.113378]
[1769523287757,0.00117388,88323.0,88316.0,0.10204]
[1769523288457,0.00155397,88320.0,88316.0,0.10204]
[1769523289563,0.00155397,88318.0,88316.0,0.10204]
[1769523289955,0.10204,88332.0,88306.0,0.061497]
[1769523289956,0.10204,88332.0,88315.0,0.00065201]
[1769523290157,0.10204,88332.0,88323.0,0.00065201]
[1769523290363,0.011335,88336.0,88323.0,0.00065201]
[1769523290554,0.10204,88335.0,88323.0,0.00065201]
[1769523291063,0.11419154,88335.0,88318.0,0.011337]
[1769523291264,0.011336,88332.0,88318.0,0.011337]
[1769523291462,0.011336,88330.0,88317.0,0.00027476]
[1769523291661,0.113376,88333.0,88318.0,4.376e-05]
[1769523292161,0.011336,88331.0,88318.0,4.376e-05]
[1769523292366,0.011335,88334.0,88320.0,4.376e-05]
[1769523292556,0.011335,88334.0,88306.0,0.20688275]
[1769523292557,0.01222163,88336.0,88310.0,0.1169075]
[1769523292760,0.011336,88333.0,88320.0,0.011337]
[1769523294170,0.01221098,88327.0,88313.0,0.011338]